[Event "Live Chess"]
[Site "Chess.com"]
[Date "2024.06.02"]
[Round "-"]
[White "gobbles19"]
[Black "bill77678"]
[Result "1-0"]
[WhiteElo "2216"]
[BlackElo "1841"]
[TimeControl "300"]
[EndTime "7:55:10 PDT"]
[Termination "gobbles19 won by resignation"]

1. e4 {[%clk 0:04:58]} 1... c6 {[%clk 0:04:59]} 2. d4 {[%clk 0:04:57.2]} 2... d5
{[%clk 0:04:58.5]} 3. e5 {[%clk 0:04:56.9]} 3... c5 {[%clk 0:04:57.2]} 4. dxc5
{[%clk 0:04:55.5]} 4... e6 {[%clk 0:04:56.1]} 5. Be3 {[%clk 0:04:55.2]} 5... Nd7
{[%clk 0:04:53.9]} 6. c4 {[%clk 0:04:53.9]} 6... Bxc5 {[%clk 0:04:50]} 7. Bxc5
{[%clk 0:04:52]} 7... Nxc5 {[%clk 0:04:48.6]} 8. cxd5 {[%clk 0:04:51.7]} 8...
Qxd5 {[%clk 0:04:40.9]} 9. Qxd5 {[%clk 0:04:50.4]} 9... exd5 {[%clk 0:04:40.8]}
10. Nf3 {[%clk 0:04:49.4]} 10... Be6 {[%clk 0:04:37.3]} 11. Bb5+ {[%clk
0:04:44.9]} 11... Nd7 {[%clk 0:04:28.4]} 12. Nc3 {[%clk 0:04:41.7]} 12... a6
{[%clk 0:04:25.7]} 13. Ba4 {[%clk 0:04:36.8]} 13... b5 {[%clk 0:04:21.9]} 14.
Bb3 {[%clk 0:04:35.5]} 14... Nb6 {[%clk 0:04:21.4]} 15. Rd1 {[%clk 0:04:33.8]}
15... O-O-O {[%clk 0:04:19.3]} 16. O-O {[%clk 0:04:27.1]} 16... Ne7 {[%clk
0:04:18.2]} 17. Nd4 {[%clk 0:04:14.6]} 17... Nc4 {[%clk 0:03:55.1]} 18. f4
{[%clk 0:03:40.7]} 18... Ne3 {[%clk 0:03:46.4]} 19. Rc1 {[%clk 0:03:40]} 19...
Nxf1 {[%clk 0:03:41.4]} 20. Nxd5+ {[%clk 0:03:28.2]} 20... Kb8 {[%clk
0:03:34.3]} 21. Nxe7 {[%clk 0:03:27.3]} 21... Rxd4 {[%clk 0:02:48.2]} 22. Nc6+
{[%clk 0:03:22.9]} 22... Kb7 {[%clk 0:02:47.5]} 23. Nxd4 {[%clk 0:03:22.2]}
23... Bxb3 {[%clk 0:02:44.7]} 24. Nxb3 {[%clk 0:03:19.1]} 24... Ne3 {[%clk
0:02:42.6]} 25. Kf2 {[%clk 0:02:58]} 25... Nc4 {[%clk 0:02:41.2]} 26. Rc2 {[%clk
0:02:56.2]} 26... Rd8 {[%clk 0:02:39.2]} 27. Nc5+ {[%clk 0:02:53.1]} 27... Kb6
{[%clk 0:02:37.4]} 28. Ne4 {[%clk 0:02:52.2]} 28... Na5 {[%clk 0:02:24.3]} 29.
Nd6 {[%clk 0:02:49.7]} 29... Rd7 {[%clk 0:02:13]} 30. b3 {[%clk 0:02:39.7]}
30... Nc6 {[%clk 0:02:10.7]} 31. Ke3 {[%clk 0:02:36.5]} 31... Nd8 {[%clk
0:02:07.7]} 32. Ke4 {[%clk 0:02:30.4]} 32... Ne6 {[%clk 0:02:05.7]} 33. b4
{[%clk 0:02:23.9]} 33... f5+ {[%clk 0:01:59.8]} 34. Ke3 {[%clk 0:02:13.6]} 34...
g6 {[%clk 0:01:54.1]} 35. g3 {[%clk 0:01:56.1]} 35... Nc7 {[%clk 0:01:47.8]} 36.
Rd2 {[%clk 0:01:49.3]} 36... Ka7 {[%clk 0:01:38.5]} 37. h4 {[%clk 0:01:42.5]}
37... Rg7 {[%clk 0:01:27.3]} 38. Rc2 {[%clk 0:01:34.9]} 38... Ne6 {[%clk
0:01:22.8]} 39. Rc8 {[%clk 0:01:29.6]} 39... Rc7 {[%clk 0:01:20.5]} 40. Rxc7+
{[%clk 0:01:28.2]} 40... Nxc7 {[%clk 0:01:20]} 41. Kd4 {[%clk 0:01:25.9]} 41...
Kb6 {[%clk 0:01:16.2]} 42. Nf7 {[%clk 0:01:18.6]} 42... Kc6 {[%clk 0:01:11]} 43.
Ng5 {[%clk 0:01:15.2]} 43... h6 {[%clk 0:01:07.9]} 44. Nf7 {[%clk 0:01:14.2]}
44... h5 {[%clk 0:01:06.6]} 45. Ng5 {[%clk 0:01:08.2]} 45... Kd7 {[%clk
0:01:01.8]} 46. Kc5 {[%clk 0:01:06.3]} 46... Na8 {[%clk 0:00:49.5]} 47. Nf3
{[%clk 0:00:59]} 47... Kc7 {[%clk 0:00:44]} 48. e6 {[%clk 0:00:57.1]} 1-0

[Event "Live Chess"]
[Site "Chess.com"]
[Date "2024.06.02"]
[Round "-"]
[White "upoe610"]
[Black "best137"]
[Result "1-0"]
[WhiteElo "2150"]
[BlackElo "1517"]
[TimeControl "300"]
[EndTime "7:55:14 PDT"]
[Termination "upoe610 won by resignation"]

1. c4 {[%clk 0:04:56.4]} 1... Nf6 {[%clk 0:04:56.6]} 2. g3 {[%clk 0:04:55.6]}
2... Nc6 {[%clk 0:04:53.4]} 3. Bg2 {[%clk 0:04:54.5]} 3... b6 {[%clk 0:04:51.7]}
4. d4 {[%clk 0:04:53.4]} 4... e6 {[%clk 0:04:41.1]} 5. a3 {[%clk 0:04:49.7]}
5... g6 {[%clk 0:04:37.7]} 6. Nc3 {[%clk 0:04:35.7]} 6... Bb7 {[%clk 0:04:32.5]}
7. d5 {[%clk 0:04:30.3]} 7... Na5 {[%clk 0:04:20.6]} 8. Qd4 {[%clk 0:04:21.4]}
8... Bg7 {[%clk 0:04:11.2]} 9. Qd3 {[%clk 0:04:12.9]} 9... Nb3 {[%clk
0:03:45.2]} 10. Rb1 {[%clk 0:04:10.7]} 10... Nxc1 {[%clk 0:03:41.4]} 11. Rxc1
{[%clk 0:04:09.9]} 11... O-O {[%clk 0:03:18.6]} 12. Nf3 {[%clk 0:04:07.6]} 12...
exd5 {[%clk 0:03:16.6]} 13. Nxd5 {[%clk 0:04:04.7]} 13... Re8 {[%clk 0:03:02.8]}
14. b4 {[%clk 0:04:00.1]} 14... a5 {[%clk 0:02:56.6]} 15. O-O {[%clk 0:03:57.9]}
15... axb4 {[%clk 0:02:34.9]} 16. axb4 {[%clk 0:03:57.8]} 16... c6 {[%clk
0:02:24.3]} 17. Nxf6+ {[%clk 0:03:55.3]} 17... Bxf6 {[%clk 0:02:19.8]} 18. Nd4
{[%clk 0:03:53.1]} 18... d5 {[%clk 0:02:16.9]} 19. b5 {[%clk 0:03:47.5]} 19...
dxc4 {[%clk 0:02:15]} 20. Qxc4 {[%clk 0:03:45.7]} 20... cxb5 {[%clk 0:02:14.2]}
21. Nxb5 {[%clk 0:03:43.2]} 21... Ba6 {[%clk 0:02:01.4]} 22. Bxa8 {[%clk
0:03:36.7]} 22... Qxa8 {[%clk 0:01:57.4]} 23. Nc7 {[%clk 0:03:36]} 23... Bxc4
{[%clk 0:01:40.4]} 24. Nxa8 {[%clk 0:03:34.1]} 24... Bxe2 {[%clk 0:01:36.7]} 25.
Nc7 {[%clk 0:03:31.6]} 25... Rc8 {[%clk 0:01:24.9]} 26. Rfe1 {[%clk 0:03:29.5]}
26... Bg5 {[%clk 0:01:15.5]} 27. f4 {[%clk 0:03:23.3]} 27... Bd8 {[%clk
0:00:58.1]} 28. Rxe2 {[%clk 0:03:20.6]} 28... Rxc7 {[%clk 0:00:56.7]} 29. Rxc7
{[%clk 0:03:13.9]} 29... Bxc7 {[%clk 0:00:56.6]} 30. Re7 {[%clk 0:03:13.1]}
30... Bd6 {[%clk 0:00:53.4]} 31. Rb7 {[%clk 0:03:11.6]} 31... Kg7 {[%clk
0:00:50.7]} 32. Kg2 {[%clk 0:03:11.1]} 32... Bc5 {[%clk 0:00:48.1]} 33. Kf3
{[%clk 0:03:10.2]} 33... Kf6 {[%clk 0:00:47]} 34. g4 {[%clk 0:03:09.3]} 34...
Ke6 {[%clk 0:00:41.2]} 35. Ke4 {[%clk 0:03:06.3]} 35... f5+ {[%clk 0:00:38.9]}
36. gxf5+ {[%clk 0:03:04]} 36... gxf5+ {[%clk 0:00:38.8]} 37. Kd3 {[%clk
0:03:03.3]} 37... h5 {[%clk 0:00:33]} 38. Rh7 {[%clk 0:03:01.5]} 38... Bd6
{[%clk 0:00:26.4]} 39. Rxh5 {[%clk 0:03:00]} 39... Bxf4 {[%clk 0:00:24.7]} 40.
h4 {[%clk 0:02:58.6]} 40... Kf6 {[%clk 0:00:17.9]} 41. Rh8 {[%clk 0:02:53.2]}
41... Bg3 {[%clk 0:00:13.4]} 42. h5 {[%clk 0:02:52.1]} 42... Kg7 {[%clk
0:00:11.1]} 43. Rc8 {[%clk 0:02:42.3]} 43... f4 {[%clk 0:00:09.7]} 44. Ke4
{[%clk 0:02:40.8]} 44... b5 {[%clk 0:00:07.5]} 45. Kf3 {[%clk 0:02:36.6]} 45...
b4 {[%clk 0:00:06.5]} 46. Kg4 {[%clk 0:02:34.3]} 46... b3 {[%clk 0:00:05.2]} 47.
Rb8 {[%clk 0:02:32]} 47... f3 {[%clk 0:00:03.8]} 48. Kxg3 {[%clk 0:02:30.8]}
48... f2 {[%clk 0:00:02.3]} 49. Kxf2 {[%clk 0:02:29.9]} 1-0

[Event "Live Chess"]
[Site "Chess.com"]
[Date "2024.06.02"]
[Round "-"]
[White "juniortay"]
[Black "r0ad_t0-gm"]
[Result "0-1"]
[WhiteElo "2296"]
[BlackElo "2248"]
[TimeControl "300"]
[EndTime "7:55:18 PDT"]
[Termination "r0ad_t0-gm won on time"]

1. e4 {[%clk 0:04:57.2]} 1... c5 {[%clk 0:04:58.3]} 2. Nf3 {[%clk 0:04:55.6]}
2... Nc6 {[%clk 0:04:57.6]} 3. b4 {[%clk 0:04:54.6]} 3... Nxb4 {[%clk
0:04:53.8]} 4. c3 {[%clk 0:04:52.3]} 4... Nc6 {[%clk 0:04:52.8]} 5. d4 {[%clk
0:04:52.2]} 5... cxd4 {[%clk 0:04:52.7]} 6. cxd4 {[%clk 0:04:51.2]} 6... e6
{[%clk 0:04:52.6]} 7. Nc3 {[%clk 0:04:49]} 7... Bb4 {[%clk 0:04:48.8]} 8. Bd2
{[%clk 0:04:47.3]} 8... d5 {[%clk 0:04:45.8]} 9. e5 {[%clk 0:04:44.8]} 9... Nge7
{[%clk 0:04:40.8]} 10. Bd3 {[%clk 0:04:42.9]} 10... Nf5 {[%clk 0:04:37.9]} 11.
Bxf5 {[%clk 0:04:41.5]} 11... exf5 {[%clk 0:04:37.8]} 12. O-O {[%clk 0:04:40.4]}
12... Be6 {[%clk 0:04:36.4]} 13. Nb5 {[%clk 0:04:38.1]} 13... Be7 {[%clk
0:04:27.3]} 14. Re1 {[%clk 0:04:27.1]} 14... O-O {[%clk 0:04:24.9]} 15. Rc1
{[%clk 0:04:16.2]} 15... a6 {[%clk 0:04:23.6]} 16. Nd6 {[%clk 0:04:09.4]} 16...
Bxd6 {[%clk 0:04:22.2]} 17. exd6 {[%clk 0:04:08.5]} 17... Qxd6 {[%clk
0:04:22.1]} 18. g3 {[%clk 0:04:06.4]} 18... Rac8 {[%clk 0:04:14.8]} 19. Bf4
{[%clk 0:04:03.9]} 19... Qd7 {[%clk 0:04:14]} 20. Qd2 {[%clk 0:03:53.4]} 20...
f6 {[%clk 0:04:07.4]} 21. h4 {[%clk 0:03:51.4]} 21... h5 {[%clk 0:03:57.2]} 22.
Qe3 {[%clk 0:03:27]} 22... Rfe8 {[%clk 0:03:53.9]} 23. Nd2 {[%clk 0:03:19]}
23... Bf7 {[%clk 0:03:49.8]} 24. Qd3 {[%clk 0:03:13.2]} 24... Na5 {[%clk
0:03:46.2]} 25. Rc5 {[%clk 0:03:01.4]} 25... Nc4 {[%clk 0:03:41.3]} 26. Rf1
{[%clk 0:02:49.8]} 26... b6 {[%clk 0:03:35.4]} 27. Rxc8 {[%clk 0:02:45]} 27...
Rxc8 {[%clk 0:03:35.3]} 28. Nb3 {[%clk 0:02:37]} 28... Qe6 {[%clk 0:03:18.5]}
29. f3 {[%clk 0:02:22.6]} 29... Re8 {[%clk 0:03:12.6]} 30. Rf2 {[%clk
0:02:16.8]} 30... Qe1+ {[%clk 0:03:07.8]} 31. Kg2 {[%clk 0:02:14.7]} 31... a5
{[%clk 0:02:51.5]} 32. Nd2 {[%clk 0:01:47.6]} 32... Nxd2 {[%clk 0:02:19.2]} 33.
Bxd2 {[%clk 0:01:45.7]} 33... Qe6 {[%clk 0:02:17.4]} 34. Qb3 {[%clk 0:01:36.4]}
34... Rc8 {[%clk 0:02:06.7]} 35. Bf4 {[%clk 0:01:31.6]} 35... Qc6 {[%clk
0:02:04.7]} 36. Rb2 {[%clk 0:01:28.4]} 36... b5 {[%clk 0:01:46.4]} 37. Qxb5
{[%clk 0:01:19.3]} 37... Qxb5 {[%clk 0:01:46.3]} 38. Rxb5 {[%clk 0:01:16.7]}
38... Rc2+ {[%clk 0:01:45.7]} 39. Kf1 {[%clk 0:01:14.9]} 39... Rxa2 {[%clk
0:01:45.6]} 40. Rb7 {[%clk 0:01:06.1]} 40... a4 {[%clk 0:01:38.7]} 41. Ra7
{[%clk 0:01:04.8]} 41... Be8 {[%clk 0:01:36]} 42. Bd6 {[%clk 0:00:55.9]} 42...
Bb5+ {[%clk 0:01:33.3]} 43. Kg1 {[%clk 0:00:54.3]} 43... Bc4 {[%clk 0:01:31]}
44. Bc5 {[%clk 0:00:52.6]} 44... Bb3 {[%clk 0:01:28.8]} 45. Ra8+ {[%clk
0:00:50.8]} 45... Kf7 {[%clk 0:01:27.5]} 46. Ra7+ {[%clk 0:00:50.5]} 46... Kg6
{[%clk 0:01:26.9]} 47. Bf8 {[%clk 0:00:49]} 47... f4 {[%clk 0:01:17.5]} 48. gxf4
{[%clk 0:00:41.8]} 48... Kf5 {[%clk 0:01:16.5]} 49. Bd6 {[%clk 0:00:39.8]} 49...
g6 {[%clk 0:01:15.5]} 50. Kf1 {[%clk 0:00:36.8]} 50... Bd1 {[%clk 0:01:13.7]}
51. Ra6 {[%clk 0:00:28.2]} 51... Bxf3 {[%clk 0:01:12]} 52. Be7 {[%clk 0:00:26]}
52... Kxf4 {[%clk 0:01:10]} 53. Rxf6+ {[%clk 0:00:19]} 53... Ke3 {[%clk
0:01:07.8]} 54. Re6+ {[%clk 0:00:13]} 54... Be4 {[%clk 0:01:07.2]} 55. Kg1
{[%clk 0:00:10.2]} 55... Kf3 {[%clk 0:01:02.4]} 56. Rf6+ {[%clk 0:00:08.4]}
56... Bf5 {[%clk 0:01:00.7]} 57. Bd6 {[%clk 0:00:03.8]} 57... a3 {[%clk
0:00:56.8]} 58. Rf8 {[%clk 0:00:00.6]} 58... Rg2+ {[%clk 0:00:55.1]} 0-1

[Event "Live Chess"]
[Site "Chess.com"]
[Date "2024.06.02"]
[Round "-"]
[White "Dashman93"]
[Black "kylet1990"]
[Result "1-0"]
[WhiteElo "2148"]
[BlackElo "766"]
[TimeControl "300"]
[EndTime "7:55:32 PDT"]
[Termination "Dashman93 won by resignation"]

1. b3 {[%clk 0:04:59.7]} 1... d5 {[%clk 0:04:57.2]} 2. Bb2 {[%clk 0:04:59.6]}
2... Bf5 {[%clk 0:04:55]} 3. Nf3 {[%clk 0:04:58.4]} 3... e6 {[%clk 0:04:54]} 4.
e3 {[%clk 0:04:58]} 4... Nc6 {[%clk 0:04:52]} 5. d4 {[%clk 0:04:57.6]} 5... Bd6
{[%clk 0:04:50.9]} 6. Bb5 {[%clk 0:04:56.8]} 6... Qd7 {[%clk 0:04:47.8]} 7. Nbd2
{[%clk 0:04:55.4]} 7... a6 {[%clk 0:04:47]} 8. Bd3 {[%clk 0:04:53.7]} 8... Bg6
{[%clk 0:04:45]} 9. O-O {[%clk 0:04:52.6]} 9... O-O-O {[%clk 0:04:42.3]} 10. Qe2
{[%clk 0:04:49.6]} 10... Nf6 {[%clk 0:04:41.2]} 11. Ne5 {[%clk 0:04:48.6]} 11...
Nxe5 {[%clk 0:04:35]} 12. dxe5 {[%clk 0:04:48.5]} 12... Bxe5 {[%clk 0:04:32.6]}
13. Bxe5 {[%clk 0:04:47.7]} 13... h5 {[%clk 0:04:22.5]} 14. Nf3 {[%clk
0:04:45.8]} 14... h4 {[%clk 0:04:19.6]} 15. h3 {[%clk 0:04:44.4]} 15... Bxd3
{[%clk 0:04:16.1]} 16. cxd3 {[%clk 0:04:43.3]} 16... Nh5 {[%clk 0:04:07.7]} 17.
Rac1 {[%clk 0:04:41.9]} 17... f6 {[%clk 0:04:05]} 18. Rxc7+ {[%clk 0:04:40.7]}
18... Qxc7 {[%clk 0:03:59.4]} 19. Bxc7 {[%clk 0:04:40.6]} 1-0

[Event "Live Chess"]
[Site "Chess.com"]
[Date "2024.06.02"]
[Round "-"]
[White "Colm_Buckley"]
[Black "wadsy27"]
[Result "0-1"]
[WhiteElo "1879"]
[BlackElo "2603"]
[TimeControl "300"]
[EndTime "7:55:34 PDT"]
[Termination "wadsy27 won by resignation"]

1. d4 {[%clk 0:04:56.8]} 1... Nf6 {[%clk 0:04:59]} 2. c4 {[%clk 0:04:55.7]} 2...
g6 {[%clk 0:04:58.5]} 3. Nc3 {[%clk 0:04:54.6]} 3... d5 {[%clk 0:04:57.7]} 4.
Nf3 {[%clk 0:04:50.5]} 4... Bg7 {[%clk 0:04:56.2]} 5. e3 {[%clk 0:04:47.7]} 5...
O-O {[%clk 0:04:54.4]} 6. Be2 {[%clk 0:04:41.7]} 6... dxc4 {[%clk 0:04:53]} 7.
Bxc4 {[%clk 0:04:40.4]} 7... c5 {[%clk 0:04:52.6]} 8. O-O {[%clk 0:04:38.5]}
8... cxd4 {[%clk 0:04:51.9]} 9. Nxd4 {[%clk 0:04:32]} 9... a6 {[%clk 0:04:45]}
10. a4 {[%clk 0:04:26.2]} 10... e5 {[%clk 0:04:27.2]} 11. Nf3 {[%clk 0:04:07.2]}
11... Nc6 {[%clk 0:04:25.4]} 12. h3 {[%clk 0:03:54]} 12... e4 {[%clk 0:04:22.9]}
13. Ng5 {[%clk 0:03:46.6]} 13... Ne5 {[%clk 0:04:21.4]} 14. Qb3 {[%clk
0:03:28.6]} 14... Nxc4 {[%clk 0:04:17]} 15. Qxc4 {[%clk 0:03:26.3]} 15... b5
{[%clk 0:04:13.1]} 16. Qe2 {[%clk 0:03:15.6]} 16... Bb7 {[%clk 0:04:04.3]} 17.
axb5 {[%clk 0:03:11.5]} 17... axb5 {[%clk 0:04:04.2]} 18. Rxa8 {[%clk
0:03:09.7]} 18... Qxa8 {[%clk 0:04:04.1]} 19. f4 {[%clk 0:02:39.6]} 19... b4
{[%clk 0:04:02]} 0-1

[Event "Live Chess"]
[Site "Chess.com"]
[Date "2024.06.02"]
[Round "-"]
[White "educatedlad"]
[Black "NeilDruggan73"]
[Result "1/2-1/2"]
[WhiteElo "1747"]
[BlackElo "1719"]
[TimeControl "300"]
[EndTime "7:55:42 PDT"]
[Termination "Game drawn - insufficient material"]

1. d4 {[%clk 0:04:58.5]} 1... Nf6 {[%clk 0:04:57.1]} 2. Bg5 {[%clk 0:04:56.7]}
2... Ne4 {[%clk 0:04:41.1]} 3. Bf4 {[%clk 0:04:55.4]} 3... c5 {[%clk 0:04:29.3]}
4. f3 {[%clk 0:04:53.4]} 4... Nf6 {[%clk 0:04:22.5]} 5. dxc5 {[%clk 0:04:47.5]}
5... Qa5+ {[%clk 0:04:19]} 6. Qd2 {[%clk 0:04:45.3]} 6... Qxc5 {[%clk
0:04:17.2]} 7. Nc3 {[%clk 0:04:44.1]} 7... Qb6 {[%clk 0:04:15.6]} 8. e4 {[%clk
0:04:42.6]} 8... d6 {[%clk 0:04:10.9]} 9. Be3 {[%clk 0:04:40.3]} 9... Qa5 {[%clk
0:04:00.2]} 10. Nb5 {[%clk 0:04:32.3]} 10... Qxd2+ {[%clk 0:03:54.3]} 11. Bxd2
{[%clk 0:04:32.2]} 11... Kd7 {[%clk 0:03:51.8]} 12. Nh3 {[%clk 0:04:27.9]} 12...
h6 {[%clk 0:03:48.5]} 13. O-O-O {[%clk 0:04:24.1]} 13... a6 {[%clk 0:03:46]} 14.
Na3 {[%clk 0:04:20.4]} 14... b5 {[%clk 0:03:43.4]} 15. Bc3 {[%clk 0:04:18.1]}
15... g5 {[%clk 0:03:33.2]} 16. e5 {[%clk 0:04:16.8]} 16... Nh5 {[%clk
0:03:20.2]} 17. exd6 {[%clk 0:04:15.1]} 17... f6 {[%clk 0:03:19.1]} 18. dxe7+
{[%clk 0:04:08]} 18... Kxe7 {[%clk 0:03:17.8]} 19. Bb4+ {[%clk 0:04:06]} 19...
Kf7 {[%clk 0:03:16.4]} 20. Bxf8 {[%clk 0:04:00.6]} 20... Rxf8 {[%clk 0:03:14.7]}
21. g4 {[%clk 0:03:57.6]} 21... Ng7 {[%clk 0:03:09.7]} 22. Bd3 {[%clk
0:03:55.4]} 22... Be6 {[%clk 0:02:58.7]} 23. Nf2 {[%clk 0:03:52.5]} 23... Nd7
{[%clk 0:02:42.3]} 24. Be4 {[%clk 0:03:49.6]} 24... Rab8 {[%clk 0:02:37.7]} 25.
b3 {[%clk 0:03:47.6]} 25... Ne5 {[%clk 0:02:30.8]} 26. Rhe1 {[%clk 0:03:44.6]}
26... h5 {[%clk 0:02:27.3]} 27. gxh5 {[%clk 0:03:42.9]} 27... Nxh5 {[%clk
0:02:26]} 28. Nd3 {[%clk 0:03:42.8]} 28... Nxd3+ {[%clk 0:02:17.1]} 29. Bxd3
{[%clk 0:03:42.7]} 29... Nf4 {[%clk 0:02:09.9]} 30. Nb1 {[%clk 0:03:39.6]} 30...
Nxd3+ {[%clk 0:02:07.1]} 31. Rxd3 {[%clk 0:03:37.6]} 31... Rbc8 {[%clk
0:02:03.4]} 32. Nc3 {[%clk 0:03:35.9]} 32... Bf5 {[%clk 0:02:00.9]} 33. Rde3
{[%clk 0:03:32.9]} 33... b4 {[%clk 0:01:55.3]} 34. Ne4 {[%clk 0:03:31.8]} 34...
Rfd8 {[%clk 0:01:42]} 35. R1e2 {[%clk 0:03:25.3]} 35... g4 {[%clk 0:01:38.2]}
36. fxg4 {[%clk 0:03:23.2]} 36... Bxg4 {[%clk 0:01:36.9]} 37. Rf2 {[%clk
0:03:22.7]} 37... f5 {[%clk 0:01:21]} 38. Ng5+ {[%clk 0:03:16.5]} 38... Kf6
{[%clk 0:01:15.6]} 39. h3 {[%clk 0:03:12]} 39... Kxg5 {[%clk 0:01:10]} 40. hxg4
{[%clk 0:03:11.1]} 40... fxg4 {[%clk 0:01:08.4]} 41. Re5+ {[%clk 0:03:09.5]}
41... Kh4 {[%clk 0:01:07.2]} 42. Rf4 {[%clk 0:03:03.4]} 42... Rg8 {[%clk
0:01:03.5]} 43. Ree4 {[%clk 0:03:02.3]} 43... a5 {[%clk 0:00:59.8]} 44. Kb2
{[%clk 0:03:00.2]} 44... Kh3 {[%clk 0:00:58.7]} 45. a3 {[%clk 0:02:54.5]} 45...
g3 {[%clk 0:00:57.3]} 46. Rh4+ {[%clk 0:02:52.5]} 46... Kg2 {[%clk 0:00:53.8]}
47. axb4 {[%clk 0:02:49.5]} 47... axb4 {[%clk 0:00:47.8]} 48. Rxb4 {[%clk
0:02:48.5]} 48... Rcf8 {[%clk 0:00:44.3]} 49. Rbg4 {[%clk 0:02:44.4]} 49... Rxg4
{[%clk 0:00:40.8]} 50. Rxg4 {[%clk 0:02:44.3]} 50... Kf2 {[%clk 0:00:38.1]} 51.
c4 {[%clk 0:02:42.9]} 51... g2 {[%clk 0:00:36]} 52. b4 {[%clk 0:02:41.3]} 52...
g1=Q {[%clk 0:00:33.4]} 53. Rxg1 {[%clk 0:02:39.9]} 53... Kxg1 {[%clk
0:00:32.9]} 54. Kc3 {[%clk 0:02:39.4]} 54... Rf4 {[%clk 0:00:29.7]} 55. c5
{[%clk 0:02:38.7]} 55... Kf2 {[%clk 0:00:28.9]} 56. b5 {[%clk 0:02:37.1]} 56...
Ke3 {[%clk 0:00:26.5]} 57. c6 {[%clk 0:02:35.8]} 57... Rf1 {[%clk 0:00:18.5]}
58. b6 {[%clk 0:02:32.2]} 58... Rc1+ {[%clk 0:00:16.5]} 59. Kb4 {[%clk
0:02:30.8]} 59... Rxc6 {[%clk 0:00:16]} 60. Kb5 {[%clk 0:02:29.7]} 60... Rc1
{[%clk 0:00:14]} 61. b7 {[%clk 0:02:27.8]} 61... Kd4 {[%clk 0:00:12.2]} 62. Ka6
{[%clk 0:02:25.5]} 62... Rb1 {[%clk 0:00:08.1]} 63. Ka7 {[%clk 0:02:23.8]} 63...
Ra1+ {[%clk 0:00:07.3]} 64. Kb6 {[%clk 0:02:21.9]} 64... Rb1+ {[%clk 0:00:06.1]}
65. Kc7 {[%clk 0:02:20.8]} 65... Kc5 {[%clk 0:00:04.4]} 66. b8=Q {[%clk
0:02:19.3]} 66... Rxb8 {[%clk 0:00:03.7]} 67. Kxb8 {[%clk 0:02:18.4]} 1/2-1/2

[Event "Live Chess"]
[Site "Chess.com"]
[Date "2024.06.02"]
[Round "-"]
[White "Pablo_dmp"]
[Black "Delacorta"]
[Result "0-1"]
[WhiteElo "1981"]
[BlackElo "1532"]
[TimeControl "300"]
[EndTime "7:55:42 PDT"]
[Termination "Delacorta won by checkmate"]

1. e4 {[%clk 0:04:59.5]} 1... e6 {[%clk 0:04:58.9]} 2. d4 {[%clk 0:04:58.1]}
2... d5 {[%clk 0:04:54.5]} 3. Nd2 {[%clk 0:04:58]} 3... dxe4 {[%clk 0:04:51.8]}
4. Nxe4 {[%clk 0:04:57.9]} 4... Bd7 {[%clk 0:04:50.9]} 5. Nf3 {[%clk 0:04:56.9]}
5... Bc6 {[%clk 0:04:49.7]} 6. Bd3 {[%clk 0:04:55.5]} 6... Nd7 {[%clk
0:04:47.3]} 7. O-O {[%clk 0:04:54.5]} 7... Ngf6 {[%clk 0:04:45.5]} 8. Bg5 {[%clk
0:04:50.4]} 8... Be7 {[%clk 0:04:44.4]} 9. Ng3 {[%clk 0:04:49.3]} 9... O-O
{[%clk 0:04:38.9]} 10. Re1 {[%clk 0:04:48.3]} 10... Re8 {[%clk 0:04:36.2]} 11.
c3 {[%clk 0:04:47]} 11... b6 {[%clk 0:04:28.2]} 12. Ne5 {[%clk 0:04:44.7]} 12...
Nxe5 {[%clk 0:04:21.5]} 13. Rxe5 {[%clk 0:04:44.6]} 13... Bb7 {[%clk 0:03:55.6]}
14. h4 {[%clk 0:04:40]} 14... Nd5 {[%clk 0:03:52.4]} 15. Bxe7 {[%clk 0:04:38.3]}
15... Qxe7 {[%clk 0:03:47.4]} 16. Rg5 {[%clk 0:04:36.8]} 16... Nf4 {[%clk
0:03:34.1]} 17. Bc2 {[%clk 0:04:33.1]} 17... Nxg2 {[%clk 0:03:22.4]} 18. Qh5
{[%clk 0:04:31.7]} 18... g6 {[%clk 0:03:00.3]} 19. Qg4 {[%clk 0:04:25.4]} 19...
Qd6 {[%clk 0:02:53]} 20. h5 {[%clk 0:04:23.5]} 20... Nf4 {[%clk 0:02:50.2]} 21.
hxg6 {[%clk 0:04:20.9]} 21... Nxg6 {[%clk 0:02:42.9]} 22. Bxg6 {[%clk
0:04:19.3]} 22... fxg6 {[%clk 0:02:37.8]} 23. Re1 {[%clk 0:04:17.2]} 23... Bd5
{[%clk 0:02:32.1]} 24. b3 {[%clk 0:04:13.5]} 24... Rf8 {[%clk 0:02:28.7]} 25.
Rge5 {[%clk 0:04:11.1]} 25... Bf3 {[%clk 0:02:23]} 26. Qh3 {[%clk 0:04:07]}
26... Rf6 {[%clk 0:02:10.6]} 27. Qh4 {[%clk 0:03:59.7]} 27... Raf8 {[%clk
0:02:05.9]} 28. Ne4 {[%clk 0:03:54.8]} 28... Bxe4 {[%clk 0:02:03.7]} 29. R1xe4
{[%clk 0:03:52.2]} 29... Qe7 {[%clk 0:01:50.5]} 30. Rf4 {[%clk 0:03:44.5]} 30...
Qf7 {[%clk 0:01:43.7]} 31. Rg4 {[%clk 0:03:39.6]} 31... Rxf2 {[%clk 0:01:39.7]}
32. Re1 {[%clk 0:02:53.5]} 32... Rf1+ {[%clk 0:01:22.1]} 33. Kg2 {[%clk
0:02:48.5]} 33... Qf3+ {[%clk 0:01:08.2]} 34. Kh2 {[%clk 0:02:47.4]} 34... Qh1+
{[%clk 0:00:55.5]} 35. Kg3 {[%clk 0:02:43]} 35... R8f3# {[%clk 0:00:52.2]} 0-1

[Event "Live Chess"]
[Site "Chess.com"]
[Date "2024.06.02"]
[Round "-"]
[White "DarranAS"]
[Black "ShanthamGrarks"]
[Result "0-1"]
[WhiteElo "1422"]
[BlackElo "1900"]
[TimeControl "300"]
[EndTime "7:56:01 PDT"]
[Termination "ShanthamGrarks won by resignation"]

1. e4 {[%clk 0:04:56.6]} 1... e5 {[%clk 0:04:56.3]} 2. Nf3 {[%clk 0:04:54.2]}
2... d5 {[%clk 0:04:55.9]} 3. exd5 {[%clk 0:04:46.1]} 3... Bd6 {[%clk 0:04:51]}
4. Nc3 {[%clk 0:04:37.3]} 4... f5 {[%clk 0:04:46.1]} 5. Bb5+ {[%clk 0:04:27]}
5... Bd7 {[%clk 0:04:44.1]} 6. Bxd7+ {[%clk 0:04:22.4]} 6... Nxd7 {[%clk
0:04:44]} 7. O-O {[%clk 0:04:21.4]} 7... Ngf6 {[%clk 0:04:42.9]} 8. Re1 {[%clk
0:04:15.6]} 8... O-O {[%clk 0:04:39.8]} 9. d3 {[%clk 0:04:05.2]} 9... a6 {[%clk
0:04:34.7]} 10. Bg5 {[%clk 0:04:03.3]} 10... Qe8 {[%clk 0:04:32.8]} 11. Ne2
{[%clk 0:03:25.3]} 11... Qg6 {[%clk 0:04:24.8]} 12. Bxf6 {[%clk 0:02:56.6]}
12... Nxf6 {[%clk 0:04:21.9]} 13. Nh4 {[%clk 0:02:44.7]} 13... Qh5 {[%clk
0:04:18.3]} 14. g3 {[%clk 0:02:38.2]} 14... g5 {[%clk 0:04:12.4]} 15. Ng2 {[%clk
0:02:35.8]} 15... f4 {[%clk 0:04:00.9]} 16. Nc3 {[%clk 0:02:12.8]} 16... f3
{[%clk 0:03:57.5]} 17. Ne3 {[%clk 0:02:07.6]} 17... Bc5 {[%clk 0:03:51.3]} 18.
Qd2 {[%clk 0:01:17.1]} 18... Qh3 {[%clk 0:03:44.7]} 19. Ne4 {[%clk 0:01:08.9]}
19... Nxe4 {[%clk 0:03:32.8]} 20. dxe4 {[%clk 0:01:04.2]} 20... Bxe3 {[%clk
0:03:29.3]} 21. fxe3 {[%clk 0:01:04.1]} 21... f2+ {[%clk 0:03:27.8]} 0-1